[Event "2nd Doppelbauer Kiel GM 2022"]
[Site "Kiel"]
[Date "2022.07.04"]
[Round "8.5"]
[White "Pajeken, Jakob Leon"]
[Black "Hacker, Jonas"]
[Result "1-0"]
[ECO "E04"]
[WhiteElo "2398"]
[BlackElo "2396"]
[Annotator "TA"]
[PlyCount "125"]
[EventDate "2022.06.30"]
[EventType "tourn"]
[EventCountry "GER"]
[SourceTitle "playchess.com"]
[Source "ChessBase"]
[SourceQuality "1"]
[TimeControl "40/5400+30:1800+30"]

{[%evp 13,125,29,31,28,31,35,34,26,30,37,34,30,43,43,40,39,39,48,41,43,43,38,42,39,42,45,40,40,57,50,48,55,70,77,86,84,91,90,91,91,98,91,91,91,91,91,91,91,91,91,91,79,91,91,91,91,91,91,91,75,91,91,91,91,91,91,91,77,91,91,91,67,67,0,91,77,100,91,91,91,93,91,91,0,91,0,91,75,110,91,119,68,131,133,127,107,131,103,145,111,139,93,130,125,125,79,170,107,599,591,932,881,864,840]} 1. d4 {[%emt 0:00:26]} Nf6 {[%emt 0:00:26]} 2. Nf3 {[%emt 0:00:06]} d5 {[%emt 0:00:14][%cal Bd7d5,Bd5c4][%mdl 32]} 3. c4 {[%emt 0:00:06]} e6 {[%emt 0:00:11]} 4. g3 {[%emt 0:00:08]} dxc4 {[%emt 0:00:40]} 5. Bg2 {[%emt 0:00:12]} a6 {[%emt 0:00:54]} 6. O-O {[%emt 0:00:14]} Nc6 {[%emt 0:00:22]} 7. e3 {[%emt 0:00:04]} Bd7 {[%emt 0:03:25]} 8. Qe2 {[%emt 0:00:09] E04: Open Catalan: 5 Nf3.} Bd6 {[%emt 0:02:33] is now more promising than 8...b5.} 9. Qxc4 {[%emt 0:00:12]} O-O {[%emt 0:01:23]} 10. Nbd2 {[%emt 0:00:17] White is slightly better.} Rb8 {[%emt 0:07:10]} 11. b3 {[%emt 0:00:53]} e5 {[%emt 0:04:55]} 12. Bb2 {[%emt 0:00:28][%cal Rd4e5]} Qe7 {[%emt 0:06:33]} 13. dxe5 {[%emt 0:02:45]} (13. Nxe5 {is interesting.} Nxe5 14. dxe5 Bxe5 15. Bxe5 Qxe5 16. Nf3) 13... Nxe5 {[%emt 0:01:20]} 14. Bxe5 {[%emt 0:00:34]} Bxe5 {[%emt 0:00:19]} 15. Nxe5 {[%emt 0:00:16]} Qxe5 {[%emt 0:00:32]} 16. Nf3 {[%emt 0:00:34]} Qa5 {[%emt 0:05:36]} 17. b4 {[%emt 0:03:02]} Qb6 {[%emt 0:02:55] [#]} 18. Nd4 $146 {[%emt 0:03:40]} ({Predecessor:} 18. a4 c6 19. Nd4 Rbc8 20. Rfd1 Rfe8 21. Rac1 Rcd8 22. a5 Qc7 23. Rd3 h6 24. Qc3 {½-½ (59) Kuster,Z (2204)-Ivanovic,Z (2287) ICCF email 2017}) 18... Bb5 {[%emt 0:03:24]} 19. Nxb5 {[%emt 0:00:42]} axb5 {[%emt 0:00:48]} 20. Qb3 {[%emt 0:04:03]} Rbd8 {[%emt 0:04:45]} 21. a4 {[%emt 0:02:51]} bxa4 {[%emt 0:04:00]} 22. Qxa4 {[%emt 0:00:35]} Rd6 {[%emt 0:07:55]} 23. Qa7 {[%emt 0:06:06]} Qxb4 {[%emt 0:07:51]} 24. Rab1 {[%emt 0:00:21]} (24. Bxb7 c6 $14) 24... Ra6 {[%emt 0:05:04]} 25. Qxb7 {[%emt 0:02:03]} ({Much weaker is} 25. Bxb7 $6 Rxa7 26. Rxb4 Rb8 $11) 25... Qxb7 {[%emt 0:00:58]} 26. Rxb7 {[%emt 0:00:58]} Ne8 {[%emt 0:03:39]} 27. Rc1 {[%emt 0:02:09]} Re6 {[%emt 0:00:57]} 28. Bc6 {[%emt 0:06:14]} Re7 {[%emt 0:00:29]} 29. Ba4 {[%emt 0:04:13]} h5 {[%emt 0:00:39]} 30. Kg2 {[%emt 0:00:49]} g6 {[%emt 0:00:20]} 31. Kf3 {[%emt 0:01:06]} Kg7 {[%emt 0:01:00]} 32. h4 {[%emt 0:00:53]} Kg8 {[%emt 0:02:58]} 33. Ra7 {[%emt 0:02:29]} Kg7 {[%emt 0:22:45]} 34. Ke2 {[%emt 0:04:11]} Kg8 {[%emt 0:00:00]} 35. Rc5 {[%emt 0:00:51]} Kg7 {[%emt 0:00:00]} 36. Rc4 {[%emt 0:02:15]} Kg8 {[%emt 0:00:00]} 37. Rc6 {[%emt 0:00:55]} Kg7 {[%emt 0:00:00]} 38. Rc3 {[%emt 0:02:00]} Kg8 {[%emt 0:00:00]} 39. Kd3 {[%emt 0:00:54]} Kg7 {[%emt 0:00:00]} 40. Rc4 {[%emt 0:00:40]} Kg8 {[%emt 0:00:00]} 41. Rc5 {[%emt 0:30:32]} Kg7 {[%emt 0:34:00]} 42. Rc6 {[%emt 0:04:12]} Rd7+ {[%emt 0:00:00]} 43. Ke2 {[%emt 0:00:41][%cal Oc6g6] Black must now prevent Rxg6+!} Re7 $1 {[%emt 0:00:00]} 44. Kf3 {[%emt 0:01:09]} Re5 {[%emt 0:00:00]} 45. Rc4 {[%emt 0:01:24]} Re7 {[%emt 0:00:00]} 46. Rc2 {[%emt 0:01:31]} Kg8 {[%emt 0:00:00]} 47. Ke2 {[%emt 0:00:59]} Kg7 {[%emt 0:00:00]} 48. Rc3 {[%emt 0:00:37]} Kg8 $1 {[%emt 0:00:00]} 49. Rc5 {[%emt 0:01:42]} Kg7 $1 {[%emt 0:00:00]} 50. Bc2 {[%emt 0:00:56]} Kg8 {[%emt 0:00:00]} 51. f3 {[%emt 0:01:01][%cal Bf2f3,Bf3f4][%mdl 32]} Kg7 {[%emt 0:00:00]} 52. Bd3 {[%emt 0:03:19]} (52. e4 $16) 52... Kg8 {[%emt 0:00:00]} ({Black should try} 52... f5 $14) 53. e4 $16 {[%emt 0:00:35]} Kg7 {[%emt 0:00:00]} 54. f4 {[%emt 0:02:48]} Kg8 {[%emt 0:00:00]} 55. Kf3 {[%emt 0:01:00]} Kg7 {[%emt 0:00:00]} 56. Bc2 {[%emt 0:02:14] White is more active.} Kg8 {[%emt 0:01:27]} 57. e5 {[%emt 0:00:39]} (57. Bb3 $142) 57... Kg7 {[%emt 0:02:57]} 58. Ba4 {[%emt 0:00:20]} Kg8 {[%emt 0:00:00]} 59. Rc3 {[%emt 0:00:00]} (59. Bb3 $142) 59... Kg7 {[%emt 0:00:00]} (59... Ng7 $16) 60. Ra8 {[%emt 0:00:00]} (60. Rc6 $18) 60... Kg8 $2 {[%emt 0:00:00][%mdl 8192]} (60... c5 $16 61. Rxc5 Nc7 62. Rxf8 Kxf8) 61. Rd3 $18 {[%emt 0:00:00] [#] aiming for Rdd8. White is clearly winning.} c6 {[%emt 0:00:00]} 62. Rdd8 {[%emt 0:00:00]} Re6 {[%emt 0:00:00]} 63. Rac8 {[%emt 0:00:00] Weighted Error Value: White=0.13 (very precise) /Black=0.22 (precise)} 1-0

[Event "2nd Doppelbauer Kiel GM 2022"]
[Site "Kiel"]
[Date "2022.07.05"]
[Round "9.1"]
[White "Hacker, Jonas"]
[Black "Parvanyan, Ashot"]
[Result "1/2-1/2"]
[ECO "C54"]
[WhiteElo "2396"]
[BlackElo "2455"]
[Annotator "TA"]
[PlyCount "77"]
[EventDate "2022.06.30"]
[EventType "tourn"]
[EventCountry "GER"]
[SourceTitle "playchess.com"]
[Source "ChessBase"]
[SourceQuality "1"]
[TimeControl "40/5400+30:1800+30"]

{[%evp 17,77,0,0,0,0,0,0,0,0,0,0,0,0,0,11,11,8,7,14,20,27,0,0,-30,0,0,0,0,0,-31,0,0,0,0,0,0,0,0,0,0,10,0,14,6,35,14,0,0,0,7,22,0,0,0,0,0,0,0,0,0,0,0]} 1. e4 {[%emt 0:00:01]} e5 {[%emt 0:00:05]} 2. Nf3 {[%emt 0:00:05]} Nc6 {[%emt 0:00:01]} 3. Bc4 {[%emt 0:00:07]} Bc5 {[%emt 0:00:08]} 4. c3 {[%emt 0:00:09]} Nf6 {[%emt 0:00:06]} 5. d4 {[%emt 0:00:08]} exd4 {[%emt 0:00:03]} 6. e5 {[%emt 0:00:08]} d5 {[%emt 0:00:05]} 7. Bb5 {[%emt 0:00:06]} Ne4 {[%emt 0:00:06]} 8. cxd4 {[%emt 0:00:06]} Bb6 {[%emt 0:00:39]} 9. Nc3 {[%emt 0:00:13]} O-O {[%emt 1:33:47]} 10. Be3 {[%emt 0:00:17] C54: Giuoco Piano: 4 c3 Nf6, main lines with 5 d4 and 5 d3.} Bg4 {[%emt 0:00:00]} 11. h3 {[%emt 0:00:25]} Bh5 {[%emt 0:00:00][%cal Bg4h5,Bh5g6,Bg6d3][%mdl 32]} 12. Qc2 {[%emt 0:00:30]} Bg6 {[%emt 0:00:00] [#] ...Nxc3 is the strong threat. 12...Nxc3 is the modern continuation.} 13. Qb3 {[%emt 0:00:22]} Ne7 {[%emt 0:00:00]} 14. O-O {[%emt 0:01:02]} c6 {[%emt 0:00:00]} 15. Bd3 {[%emt 0:01:08]} Nd2 {[%emt 0:00:00]} 16. Nxd2 {[%emt 0:01:20]} Bxd3 {[%emt 0:00:00]} 17. Rfe1 {[%emt 0:05:07]} Ng6 {[%emt 0:00:00]} 18. Na4 {[%emt 0:10:49]} Bf5 {[%emt 0:00:00] [#]} 19. Nf3 $146 {[%emt 0:11:48]} ({Predecessor:} 19. Rac1 f6 20. Nf3 Be4 21. Nd2 Bf5 22. Nc5 fxe5 23. Nxb7 Qf6 24. dxe5 Nxe5 25. Nc5 Bxc5 26. Bxc5 {0-1 (40) Robson,R (2681)-Aronian,L (2785) Saint Louis 2022}) 19... Ba5 {[%emt 0:00:00] This bishop pair is nice.} 20. Rec1 {[%emt 0:07:09]} Rb8 {[%emt 0:00:00]} (20... Qc8 $5 {[%cal Rf7f6]}) 21. Bg5 {[%emt 0:07:32]} f6 {[%emt 0:00:00]} 22. exf6 {[%emt 0:04:36]} gxf6 {[%emt 0:00:00]} 23. Bh4 {[%emt 0:03:34]} Bc7 {[%emt 0:00:00]} (23... Nf4 {is interesting.} 24. Qe3 Bc7 25. Ne5 Ne6) 24. Bg3 {[%emt 0:02:54]} Bxg3 {[%emt 0:00:00]} 25. fxg3 {[%emt 0:00:07]} Qd6 {[%emt 0:00:00]} 26. Nd2 {[%emt 0:03:05]} b6 {[%emt 0:00:00]} 27. Qf3 {[%emt 0:06:06]} Bd7 {[%emt 0:00:00] [#] Threatens to win with ...Qb4.} 28. Nc3 {[%emt 0:02:13]} Rbe8 {[%emt 0:00:00]} 29. a3 {[%emt 0:03:03] Against Qb4} f5 {[%emt 0:00:00]} 30. Re1 {[%emt 0:01:16]} f4 {[%emt 0:00:00] Hoping for ...Rxe1+.} 31. Rxe8 {[%emt 0:04:49]} Rxe8 {[%emt 0:00:00] The position is equal.} 32. g4 {[%emt 0:08:05]} Re3 {[%emt 0:03:23]} 33. Qf2 {[%emt 0:00:41]} Qe7 {[%emt 0:00:25]} 34. Nf3 {[%emt 0:01:38]} Bc8 {[%emt 0:00:14]} 35. Re1 {[%emt 0:04:12]} Ba6 {[%emt 0:03:29]} 36. Nd1 {[%emt 0:04:43]} Re4 {[%emt 0:02:20]} 37. Nc3 {[%emt 0:00:47]} Re3 {[%emt 0:00:02]} 38. Nd1 {[%emt 0:01:55]} Re4 {[%emt 0:01:05]} 39. Nc3 {[%emt 0:00:38] A balanced but interesting game.  Weighted Error Value: White=0.04 (flawless) /Black=0.04 (flawless)} 1/2-1/2

[Event "2nd Doppelbauer Kiel GM 2022"]
[Site "Kiel"]
[Date "2022.07.05"]
[Round "9.2"]
[White "Teclaf, Pawel"]
[Black "Pajeken, Jakob Leon"]
[Result "1-0"]
[ECO "A13"]
[WhiteElo "2537"]
[BlackElo "2398"]
[Annotator "TA"]
[PlyCount "63"]
[EventDate "2022.06.30"]
[EventType "tourn"]
[EventCountry "GER"]
[SourceTitle "playchess.com"]
[Source "ChessBase"]
[SourceQuality "1"]
[TimeControl "40/5400+30:1800+30"]

{[%evp 14,63,0,0,26,23,26,31,37,24,16,9,18,4,12,10,22,0,0,-12,0,0,16,0,77,81,82,103,92,81,81,76,84,81,85,84,160,172,181,182,180,308,253,169,220,112,112,108,1403,1372,1311,1293]} 1. c4 {[%emt 0:00:06]} e6 {[%emt 0:00:15]} 2. g3 {[%emt 0:00:04]} d5 {[%emt 0:00:40]} 3. Bg2 {[%emt 0:00:05]} Nf6 {[%emt 0:00:35]} 4. Nf3 {[%emt 0:00:05]} d4 {[%emt 0:00:23]} 5. O-O {[%emt 0:00:07]} c5 {[%emt 0:00:28]} 6. e3 {[%emt 0:00:04]} Nc6 {[%emt 0:00:24]} 7. exd4 {[%emt 0:00:07]} cxd4 {[%emt 0:00:03]} 8. d3 {[%emt 0:00:04]} h6 {[%emt 0:01:17] A13: English Opening: 1...e6.} 9. Bf4 {[%emt 0:00:14]} Bd6 {[%emt 0:00:13]} 10. Bxd6 {[%emt 0:00:13]} Qxd6 {[%emt 0:00:08] White is slightly better.} 11. Re1 {[%emt 0:00:39]} O-O {[%emt 0:02:12]} 12. Na3 {[%emt 0:00:07][%cal Bb1a3,Ba3c2,Bc2b4][%mdl 32]} Rd8 {[%emt 0:05:05] [#]} 13. Rc1 $146 {[%emt 0:11:23]} ({Predecessor:} 13. Nc2 a5 14. b3 e5 15. Nd2 Bg4 16. Qc1 Bf5 17. Ne4 Bxe4 18. Bxe4 Nxe4 19. Rxe4 {0-1 (28) Zboril,J (1953)-Freisler,P (2240) Czech Republic 2018}) 13... Qc5 {[%emt 0:08:28]} 14. Nc2 {[%emt 0:11:07]} a5 {[%emt 0:03:06]} 15. a3 {[%emt 0:27:56]} a4 {[%emt 0:04:25]} 16. Qd2 {[%emt 0:00:14]} Bd7 {[%emt 0:09:42]} 17. Nb4 {[%emt 0:04:59]} Re8 {[%emt 0:08:18]} 18. Re2 {[%emt 0:05:57]} e5 {[%emt 0:13:58]} (18... Rac8 $11) 19. Rce1 $16 {[%emt 0:03:19]} e4 {[%emt 0:10:40]} 20. dxe4 {[%emt 0:00:24] Strongly threatening e5.} Bg4 {[%emt 0:02:25]} 21. Nxc6 {[%emt 0:03:52]} bxc6 {[%emt 0:01:32]} 22. e5 {[%emt 0:01:44]} Nd7 {[%emt 0:00:47]} 23. Qf4 {[%emt 0:06:14]} Bxf3 {[%emt 0:03:04]} 24. Bxf3 {[%emt 0:00:40]} Qxc4 {[%emt 0:07:34] [#]} (24... d3 $142 25. Re3 (25. e6 fxe6 26. Rd2 Ra5 $16) 25... Re7) 25. Rc1 $1 {[%emt 0:02:53] White is more active.} Qd3 {[%emt 0:03:39]} 26. Rd2 {[%emt 0:07:15]} Qb3 {[%emt 0:01:00]} 27. Bxc6 {[%emt 0:01:48]} Rac8 {[%emt 0:01:22]} 28. Rxd4 {[%emt 0:01:57]} Nxe5 {[%emt 0:02:24] [#]} (28... g5 $142 29. Qe4 (29. Bxd7 $2 gxf4 30. Bxc8 Qxb2 $19) (29. Qd2 Rxc6 30. Rxc6 Nxe5 $16) 29... Rxe5) 29. Bxe8 {[%emt 0:06:37]} ({Less strong is} 29. Bxa4 Rxc1+ 30. Qxc1 Qb7 $14) (29. Bd5 $1 $18 {aiming for Rxc8.} Rxc1+ 30. Qxc1) 29... Rxc1+ {[%emt 0:00:45]} 30. Kg2 {[%emt 0:00:48]} Ng6 $2 {[%emt 0:06:46][%mdl 8192]} 31. Qxc1 $18 {[%emt 0:00:39]} Ne5 {[%emt 0:04:22]} 32. Qf4 {[%emt 0:04:49] Weighted Error Value: White=0.13 (very precise) /Black=0.19 (very precise)} 1-0

[Event "2nd Doppelbauer Kiel GM 2022"]
[Site "Kiel"]
[Date "2022.07.05"]
[Round "9.3"]
[White "Farokhi, Keyvan"]
[Black "Rosner, Jonas"]
[Result "1/2-1/2"]
[ECO "D12"]
[WhiteElo "2360"]
[BlackElo "2469"]
[Annotator "TA"]
[PlyCount "134"]
[EventDate "2022.06.30"]
[EventType "tourn"]
[EventCountry "GER"]
[SourceTitle "playchess.com"]
[Source "ChessBase"]
[SourceQuality "1"]
[TimeControl "40/5400+30:1800+30"]

{[%evp 15,134,27,24,6,7,12,12,0,3,29,24,-89,-83,-92,-90,-79,-79,-79,-76,-139,-156,-133,-187,-183,-118,-79,-90,-102,-103,-208,-123,-213,0,0,0,0,11,0,0,0,391,-8,-8,-8,-8,-8,-8,-8,-8,-8,-8,-8,-8,-8,-8,-8,-8,-8,-8,-8,-8,-8,-8,-8,-8,-8,-8,-8,-8,-8,-8,-8,-8,-8,-8,-8,-8,-16,-16,-16,-16,-16,-16,-16,-16,-16,-16,-16,-16,-16,-16,-16,-16,-16,-16,-16,-16,-16,-16,-16,-16,-16,-16,-16,-8,-8,-8,-8,-8,-8,-8,-8,-8,-8,0,-8,0,-8,8,-8,-8]} 1. d4 {[%emt 0:00:04]} d5 {[%emt 0:00:06]} 2. c4 {[%emt 0:00:05]} c6 {[%emt 0:00:05]} 3. Nf3 {[%emt 0:00:08]} Nf6 {[%emt 0:00:07]} 4. e3 {[%emt 0:00:07]} Bf5 {[%emt 0:00:23]} 5. Nc3 {[%emt 0:00:08]} e6 {[%emt 0:00:14]} 6. Nh4 {[%emt 0:00:10]} Be4 {[%emt 0:00:25]} 7. f3 {[%emt 0:00:12]} Bg6 {[%emt 0:00:08]} 8. Qb3 {[%emt 0:00:20]} Qc7 {[%emt 0:00:51]} 9. Bd2 {[%emt 0:00:15] D12: Slav Defence: 3 Nf3 Nf6 4 e3 Bf5.} Be7 {[%emt 0:00:26]} 10. Nxg6 {[%emt 0:00:35]} hxg6 {[%emt 0:00:04]} 11. Rc1 {[%emt 0:00:20]} dxc4 {[%emt 0:04:33]} 12. Bxc4 {[%emt 0:00:55]} Nbd7 {[%emt 0:01:02] [#]} 13. e4 $146 {[%emt 0:07:23]} (13. g3 $11 {remains equal.}) ({Predecessor:} 13. g3 O-O 14. O-O Rad8 15. Qc2 c5 16. dxc5 Qxc5 17. Be2 Ne5 18. Rfd1 Rd7 19. Kf2 {½-½ (49) Van Wely,L (2622)-Bartel,M (2600) Germany 2019}) 13... Rxh2 $17 {[%emt 0:06:00]} 14. Kf2 {[%emt 0:13:04]} Nh5 $1 {[%emt 0:07:47]} 15. f4 {[%emt 0:00:25]} Rxh1 {[%emt 0:09:35]} 16. Rxh1 {[%emt 0:00:03]} O-O-O {[%emt 0:00:44][%cal Od7c5]} 17. g3 {[%emt 0:23:04] [#]} ({White should play} 17. e5) 17... Nc5 $1 {[%emt 0:04:25][%mdl 512]} 18. Qc2 {[%emt 0:05:48]} Rxd4 {[%emt 0:00:36]} 19. Be2 {[%emt 0:00:05]} Nf6 {[%emt 0:05:33]} (19... e5 $19 {[%cal Re5f4]} 20. Be3 Rd8 21. Bg4+ f5 22. Bxh5 Nd3+ 23. Kf1 gxh5 24. Rxh5 fxe4) 20. Be3 {[%emt 0:00:15]} Rd8 {[%emt 0:04:11]} ({Of course not} 20... Nfxe4+ 21. Nxe4 Nxe4+ 22. Kf3 Nxg3 23. Kxg3 $11) 21. b4 {[%emt 0:00:48]} Ncd7 {[%emt 0:01:02]} 22. Rc1 {[%emt 0:01:19]} (22. Qb3 $17) 22... a6 {[%emt 0:12:57]} (22... Bxb4 $19 23. Nb5 Qa5 24. Nxa7+ Kb8) 23. b5 {[%emt 0:07:06]} (23. e5 $17 Nxe5 24. fxe5 Qxe5 25. Bf4 Qd4+ 26. Be3 Ng4+ 27. Bxg4 Qxg4 28. Qe4 Qxe4 29. Nxe4) 23... cxb5 $2 {[%emt 0:04:03]} ({Better is} 23... Ba3 $19 24. bxa6 Bxc1 25. Qxc1 Qa5) 24. e5 $1 $36 {[%emt 0:00:41][%mdl 2048] Black is under pressure.} Ne8 {[%emt 0:00:48]} 25. Qb1 $1 {[%emt 0:10:51] Threatens to win with Ne4.} Nc5 {[%emt 0:00:59]} (25... Ba3 $5 {[%cal Ra3c1]} 26. Nxb5 Bxc1 27. Nxc7 Bxe3+ 28. Kxe3 Nxc7 $11) 26. Ne4 {[%emt 0:02:52][%cal Re4c5]} b6 {[%emt 0:06:32] And now ...Qa7 would win.} 27. a4 $1 {[%emt 0:00:43]} Qa7 $2 {[%emt 0:09:54][%mdl 8192] [#]} (27... Qc6 $11) 28. axb5 $2 {[%emt 0:03:45]} (28. a5 $1 $18 {[%cal Ra5b6]} Kb8 29. axb6 Nxe4+ 30. Qxe4) 28... axb5 {[%emt 0:00:58] Hoping for ...Nc7. The position is equal.} 29. Nxc5 {[%emt 0:02:30]} (29. Bxc5 {looks sharper.} Bxc5+ 30. Nxc5 bxc5 31. Qxb5 Nc7 32. Qxc5 Qxc5+ 33. Rxc5 Kd7 34. Bf3) 29... Bxc5 {[%emt 0:01:23]} 30. Qxb5 {[%emt 0:02:25]} Nc7 {[%emt 0:00:36]} 31. Bxc5 {[%emt 0:00:20]} bxc5 {[%emt 0:03:26]} 32. Qxc5 {[%emt 0:02:30]} (32. Qc6 {is more complex.} Rd4 33. Rh1 c4 34. Kf3) 32... Qxc5+ {[%emt 0:00:18]} 33. Rxc5 {[%emt 0:00:07]} Rd5 {[%emt 0:01:36]} 34. Rxd5 {[%emt 0:03:31]} exd5 {[%emt 0:00:39][%mdl 4096] Endgame KB-KN} 35. g4 {[%emt 0:01:20]} Kd7 {[%emt 0:01:00]} 36. Ke3 {[%emt 0:00:31]} Kc6 {[%emt 0:00:32]} 37. f5 {[%emt 0:01:00]} gxf5 {[%emt 0:04:01]} 38. gxf5 {[%emt 0:00:07]} Kc5 {[%emt 0:01:20]} 39. Kd3 {[%emt 0:05:53]} f6 {[%emt 0:07:20]} 40. e6 {[%emt 0:00:49]} Kd6 {[%emt 0:01:41]} 41. Bh5 {[%emt 0:33:25]} Na6 {[%emt 0:05:02]} 42. Kd4 {[%emt 0:00:00]} Nb4 {[%emt 0:03:59]} 43. Be8 {[%emt 0:00:00]} Nc2+ {[%emt 0:01:15]} 44. Kd3 {[%emt 0:00:00]} Na3 {[%emt 0:01:12]} 45. Kd4 {[%emt 0:00:00]} Nc4 {[%emt 0:00:25]} 46. Ba4 {[%emt 0:00:00]} Ne5 {[%emt 0:01:27]} 47. e7 {[%emt 0:00:00]} Kxe7 {[%emt 0:00:31] White must now prevent ...Kd6.} 48. Kxd5 {[%emt 0:00:00]} Kf7 {[%emt 0:00:46]} 49. Bd1 {[%emt 0:00:00]} Kg8 {[%emt 0:00:24]} 50. Kd6 {[%emt 0:00:00]} Kh7 {[%emt 0:00:30]} 51. Ke7 {[%emt 0:00:00]} Kh6 {[%emt 0:00:02]} 52. Kf8 {[%emt 0:00:00]} Nc4 {[%emt 0:00:14] ( -> ...Ne3)} 53. Be2 {[%emt 0:00:00]} Ne3 {[%emt 0:00:29]} (53... Nd6 $5 54. Bd3 Nc8 $11) 54. Bd3 {[%emt 0:00:00]} Ng4 {[%emt 0:22:54]} 55. Bb1 {[%emt 0:00:00]} Nf2 {[%emt 0:00:00]} 56. Bc2 {[%emt 0:00:00]} Nh3 {[%emt 0:00:00]} 57. Bb1 {[%emt 0:00:00]} Nf4 {[%emt 0:00:00]} 58. Bc2 {[%emt 0:00:00]} Nh5 {[%emt 0:00:00]} 59. Kf7 {[%emt 0:00:00]} Kg5 {[%emt 0:00:00]} 60. Bb1 {[%emt 0:00:00]} Ng3 {[%emt 0:00:00]} 61. Kxg7 {[%emt 0:00:00]} Nxf5+ {[%emt 0:00:00]} 62. Kf7 {[%emt 0:00:00]} Nd4 {[%emt 0:00:00]} 63. Bd3 {[%emt 0:00:00]} Nb3 {[%emt 0:00:00]} 64. Bc2 {[%emt 0:00:00]} Nd4 {[%emt 0:00:00]} 65. Bd3 {[%emt 0:00:00]} Nb3 {[%emt 0:00:00]} 66. Bc2 $1 {[%emt 0:00:00]} f5 {[%emt 0:00:00]} 67. Bxf5 {[%emt 0:00:00]} Kxf5 {[%emt 0:00:00] Black had all chances to win.  Weighted Error Value: White=0.24 (precise) /Black=0.21 (precise)} 1/2-1/2

[Event "2nd Doppelbauer Kiel GM 2022"]
[Site "Kiel"]
[Date "2022.07.05"]
[Round "9.4"]
[White "Meshkovs, Nikita"]
[Black "Horvath, Dominik"]
[Result "1/2-1/2"]
[ECO "D77"]
[WhiteElo "2553"]
[BlackElo "2482"]
[Annotator "TA"]
[PlyCount "103"]
[EventDate "2022.06.30"]
[EventType "tourn"]
[EventCountry "GER"]
[SourceTitle "playchess.com"]
[Source "ChessBase"]
[SourceQuality "1"]
[TimeControl "40/5400+30:1800+30"]

{[%evp 14,103,20,0,0,19,14,0,0,2,6,0,0,0,7,12,9,8,8,0,0,0,33,33,33,13,13,13,13,18,49,49,42,50,84,29,30,10,17,0,0,0,20,11,67,65,108,106,109,56,56,70,71,63,63,63,63,63,71,73,70,70,73,78,78,78,100,78,71,78,78,78,85,7,7,7,8,0,45,0,0,0,0,0,0,0,6,0,35,0,0,0]} 1. Nf3 {[%emt 0:00:04]} d5 {[%emt 0:00:05]} 2. g3 {[%emt 0:00:06]} g6 {[%emt 0:00:04]} 3. Bg2 {[%emt 0:00:54]} Bg7 {[%emt 0:00:05]} 4. d4 {[%emt 0:00:06]} Nf6 {[%emt 0:00:04]} 5. O-O {[%emt 0:00:38]} O-O {[%emt 0:00:05]} 6. c4 {[%emt 0:00:08]} dxc4 {[%emt 0:00:04]} 7. Na3 {[%emt 0:00:05]} c5 {[%emt 0:00:12] is cutting edge theory.} 8. Nxc4 {[%emt 0:01:30]} Be6 {[%emt 0:03:08] D77: Fianchetto Grünfeld: 6 0-0: Replies other than 6...c6.} 9. Nfe5 {[%emt 0:00:06]} Qc8 {[%emt 0:01:27]} 10. dxc5 {[%emt 0:08:36]} Nfd7 $1 {[%emt 0:02:28]} 11. Nxd7 {[%emt 0:18:27]} Nxd7 {[%emt 0:00:24]} 12. c6 {[%emt 0:00:12]} bxc6 {[%emt 0:00:05]} 13. Na5 {[%emt 0:00:13]} Bd5 {[%emt 0:00:04]} 14. Qc2 {[%emt 0:13:04]} Bxg2 {[%emt 0:00:10]} 15. Kxg2 {[%emt 0:00:01]} c5 {[%emt 0:00:31]} 16. Bd2 {[%emt 0:01:40]} Nb6 {[%emt 0:14:50] [#]} 17. Rac1 $146 {[%emt 0:10:12]} ({Predecessor:} 17. Bc3 Bxc3 18. Qxc3 Qe6 19. Rfe1 Rfd8 20. b3 Rd5 21. e4 Rd4 22. Qe3 Qd7 23. Rac1 {1-0 (50) Liu,Y (2506)-Chu,W (2393) Xingtai 2018}) 17... c4 {[%emt 0:02:22]} 18. b3 {[%emt 0:07:06]} cxb3 {[%emt 0:01:40]} 19. Qxb3 {[%emt 0:00:01]} Qd7 {[%emt 0:11:39]} 20. Rfd1 {[%emt 0:03:42]} Rfc8 $1 {[%emt 0:00:11]} 21. Bf4 {[%emt 0:05:45]} Qf5 {[%emt 0:10:36]} 22. Nc6 {[%emt 0:01:35]} Qe4+ {[%emt 0:02:49]} 23. Qf3 {[%emt 0:00:01]} Qe6 {[%emt 0:03:37]} 24. Bg5 {[%emt 0:09:10]} (24. Rc2 $16) 24... Bf6 $11 {[%emt 0:01:08]} 25. Bxf6 {[%emt 0:00:06]} exf6 {[%emt 0:45:12]} 26. Rd4 {[%emt 0:01:07] [#] Strongly threatening Re4.} Kg7 {[%emt 0:00:00]} 27. a4 {[%emt 0:01:08][%cal Ba2a4,Ba4a5][%mdl 32]} Nd7 {[%emt 0:00:00]} 28. Rdc4 {[%emt 0:03:57]} Nb6 {[%emt 0:00:00]} (28... a5 $11) 29. Re4 $14 {[%emt 0:00:53]} Qf5 {[%emt 0:00:00]} 30. Qxf5 {[%emt 0:08:13]} gxf5 {[%emt 0:00:00]} 31. Rh4 {[%emt 0:00:37] White is much more active.} ({White should play} 31. Rf4 $16) 31... Rc7 {[%emt 0:00:00]} 32. a5 {[%emt 0:07:07]} Nd5 {[%emt 0:00:00]} 33. Rd4 {[%emt 0:00:00][%cal Bh4d4,Bd4d6,Bd6c6,Bc6c7,Bc7a7,Ba7a8][%mdl 32]} Ne7 {[%emt 0:00:00]} 34. Rd6 {[%emt 0:00:00]} Re8 {[%emt 0:00:00]} 35. e3 {[%emt 0:00:00]} Rxc6 {[%emt 0:00:00]} 36. Rcxc6 {[%emt 0:00:00]} Nxc6 {[%emt 0:00:00]} 37. Rxc6 {[%emt 0:00:00][%mdl 4096] Endgame KR-KR} Re6 {[%emt 0:00:00]} 38. Rc7 {[%emt 0:00:00]} a6 {[%emt 0:00:00]} 39. Ra7 {[%emt 0:00:00]} Kg6 {[%emt 0:00:00]} 40. Ra8 {[%emt 0:00:00]} h6 {[%emt 0:00:00]} 41. Kf3 {[%emt 0:31:23]} Kg7 {[%emt 0:28:59]} 42. Ke2 {[%emt 0:01:46] Hoping for Kd3.} Rd6 {[%emt 0:00:13]} 43. f4 {[%emt 0:00:00]} (43. Ke1 $16) 43... Kh7 $11 {[%emt 0:00:00]} 44. Kf3 {[%emt 0:00:00]} Kg7 {[%emt 0:00:00]} 45. Ke2 {[%emt 0:00:00]} Kh7 {[%emt 0:00:00]} 46. h3 {[%emt 0:00:00]} h5 {[%emt 0:00:00]} 47. Kf2 {[%emt 0:00:00]} Kg7 {[%emt 0:00:00]} 48. Kf3 {[%emt 0:00:00]} Kg6 {[%emt 0:00:00]} 49. Ra7 {[%emt 0:00:00]} Rc6 {[%emt 0:00:00]} 50. Ra8 {[%emt 0:00:00]} Rd6 {[%emt 0:00:00]} 51. Rg8+ {[%emt 0:00:00]} Kh7 $1 {[%emt 0:00:00]} 52. Ra8 {[%emt 0:00:00] Weighted Error Value: White=0.11 (very precise) /Black=0.07 (flawless)} 1/2-1/2